Workbook

Sheet стандарт
F1: до 165 ПМ | G1: 499620 | H1: 0.03
F2: від 165 до 290 ПМ | G2: 878120 | H2: 0.04
F3: більше 290 ПМ | H3: 0.05
D4: КАЛЬКУЛЯТОР | H4: 3028
D5: Обрані Споживачем умови кредитування
B7: Кредит видається на: | D7: НОВІ АВТО
B8: Дата надання кредиту | D8: =TODAY() -> 2025-04-30
B9: Сума кредиту,грн.: | D9: 3000000 | E9: гривень
B10: Забезпечення | D10: 4300000 | E10: гривень | K10: Заповніть дані, зазначені червоним кольором
B11: Строк користування кредитом (в місяцях): | D11: 84
B12: Погашення основної суми кредиту: щомісяця
B13: Погашення процентів: щомісяця
A14: =ROUND(D9/D11,2) -> 35714.29 | B14: Номінальна процентна ставка: | D14: =VLOOKUP(D15,'Номінальна %ставка'!$A$2:$H$8,MATCH(стандарт!$D$11,'Номінальна %ставка'!$A$2:$H$2,0),) -> 0.0799 | E14: річних | F14: =D14 -> 0.0799 | I14: =F14/12 -> 0.006658333333
B15: Авансовий внесок | D15: 0.7 | F15: =D10*D15 -> 3010000 | G15: гривень
B16: Супутні витрати позичальника:
A17: =DATE(YEAR(B40),MONTH(B40)+1,DAY(B40)) -> 2025-05-30 | B17: комісія за надання кредиту (разова): | D17: 0.025 | E17: від основної суми кредиту/ Всього: | G17: =D17*D9 -> 75000 | I17: гривень
B18: управління (обслуговування) кредитною заборгованістю: | D18: 0 | E18: на місяць від основної суми кредиту: | G18: =D18*D9 -> 0 | I18: гривень
B19: розрахунково-касове обслуговування: | G19: 0 | I19: гривень
B20: страхування НВ: | D20: 0 | E20: на рік від основної суми кредиту: | G20: =D20*D9 -> 0 | I20: гривень
B21: страхування КАСКО: | D21: 0.0649 | E21: на рік від залогової вартості: | G21: =D10*D21 -> 279070 | I21: гривень
B22: послуги нотаріуса: | G22: 0 | I22: гривень
B23: інші послуги третіх осіб | G23: 0 | I23: гривень
B24: Державна реєстрація транспортного засобу | E24: фіксована сума (одноразово) | G24: 1500 | I24: гривень
B25: Надання витягів/внесення запису(ів) до Державного реєстру обтяжень рухомого майна | G25: 2000 | I25: гривень
B26: Збір на обов'язкове державне пенсійне страхування | D26: =IF(D10<G1,H1,IF(AND(D10>=G1,D10<=G2),H2,IF(D10>G2,H3))) -> 0.05 | E26: від суми кредиту (одноразово) | G26: =(D10/1.2)*D26 -> 179166.6667 | I26: гривень
B27: оцінка майна: | E27: фіксована сума | G27: 0 | I27: гривень
B28: інша плата за послуги кредитного посередника | G28: 0 | I28: гривень
B29: ВСЬОГО | G29: =SUM(G17:G28) -> 536736.6667 | I29: гривень
F31: =PMT(F14/12,E11,-D9) ->  | G31: =IPMT(F14/12,1,24,-D9) -> 19975
D32: Розрахунок загальної вартості споживчого кредиту та реальної процентної ставки
B34: Дата видачі кредиту/дата платежу | C34: Чиста сума кредиту/сума платежу за розрахунковий період, грн. | D34: Види платежів за кредитом | U34: Орієнтовна реальна річна процентна ставка, % | V34: пепеплата
D35: сума кредиту за договором | E35: проценти за користування кредитом | F35: платежі за супутні послуги
F36: банку | K36: третіх осіб | T36: кредитного посередника (за наявності)
F37: обслуговування кредитної заборгованості | G37: РКО | H37: розрахунково-касове обслуговування | I37: комісія за надання кредиту | J37: інші послуги банку (отримання витягів/внесення запису до ДРОРМ) | K37: страхування НВ | L37: послуги нотаріусів | M37: страхування КАСКО | N37: оцінка майна | O37: Надання витягів/внесення запису(ів) до Державних реєстрів | P37: інші послуги третіх осіб (Державна реєстрація транспортного засобу) | R37: Збір на обов'язкове державне пенсійне страхування | T37: інша плата за послуги кредитного посередника
B38: 1 | C38: 2 | D38: 3 | E38: 4 | F38: 5 | G38: 6 | I38: 7 | J38: 8 | K38: 9 | L38: 10 | M38: 11 | N38: 12 | O38: 13 | P38: 14 | R38: 15 | T38: 16 | U38: 17 | V38: 18
W39: остаток
A40: e | B40: =D8 -> 2025-04-30 | C40: =-(D40-SUM(F40:T40)) -> -2463263.333 | D40: =D9 -> 3000000 | E40: х | F40: =$G$18 -> 0 | G40: =G19 -> 0 | I40: =G17 -> 75000 | J40: =G25 -> 2000 | K40: =IF(X40="страховка",$G$20,0) -> 0 | L40: =G22 -> 0 | M40: =IF(X40="страховка",$G$21,0) -> 279070 | N40: =G27 -> 0 | O40: =G23 -> 0 | P40: =G24 -> 1500 | R40: =G26 -> 179166.6667 | T40: =G28 -> 0 | U40: х | V40: х | W40: 3000000 | X40: =IF(MONTH($B$40)-MONTH(B40)=0,"страховка","нет") -> страховка
A41: e | B41: =DATE(YEAR(B40),MONTH(B40)+1,DAY(B40)) -> 2025-05-30 | C41: =SUM(D41:V41) -> 55689.29 | D41: =$A$14 -> 35714.29 | E41: =W40*$D$14/360*Y41 -> 19975 | F41: 0 | K41: =IF(X41="страховка",$G$20,0) -> 0 | M41: =IF(X41="страховка",$G$21,0) -> 0 | W41: =W40-D41 -> 2964285.71 | X41: =IF(MONTH($B$40)-MONTH(B41)=0,"страховка","нет") -> нет | Y41: =B41-B40 -> 30
A42: e | B42: =DATE(YEAR(B41),MONTH(B41)+1,DAY(B41)) -> 2025-06-30 | C42: =SUM(D42:V42) -> 56109.3991 | D42: =$A$14 -> 35714.29 | E42: =W41*$D$14/360*Y42 -> 20395.1091 | F42: 0 | K42: 0 | M42: 0 | W42: =W41-D42 -> 2928571.42 | X42: нет | Y42: =B42-B41 -> 31
A43: e | B43: 2025-07-30 | C43: 55213.6947 | D43: 35714.29 | E43: 19499.4047 | F43: 0 | K43: 0 | M43: 0 | W43: 2892857.13 | X43: нет | Y43: 30
A44: e | B44: 2025-08-30 | C44: 55617.95063 | D44: 35714.29 | E44: 19903.66063 | F44: 0 | K44: 0 | M44: 0 | W44: 2857142.84 | X44: нет | Y44: 31
A45: e | B45: 2025-09-30 | C45: 55372.22639 | D45: 35714.29 | E45: 19657.93639 | F45: 0 | K45: 0 | M45: 0 | W45: 2821428.55 | X45: нет | Y45: 31
A46: e | B46: 2025-10-30 | C46: 54500.30176 | D46: 35714.29 | E46: 18786.01176 | F46: 0 | K46: 0 | M46: 0 | W46: 2785714.26 | X46: нет | Y46: 30
A47: e | B47: 2025-11-30 | C47: 54880.77792 | D47: 35714.29 | E47: 19166.48792 | F47: 0 | K47: 0 | M47: 0 | W47: 2749999.97 | X47: нет | Y47: 31
A48: e | B48: 2025-12-30 | C48: 54024.70647 | D48: 35714.29 | E48: 18310.41647 | F48: 0 | K48: 0 | M48: 0 | W48: 2714285.68 | X48: нет | Y48: 30
A49: e | B49: 2026-01-30 | C49: 54389.32945 | D49: 35714.29 | E49: 18675.03945 | F49: 0 | K49: 0 | M49: 0 | W49: 2678571.39 | X49: нет | Y49: 31
A50: e | B50: 2026-03-02 | C50: 54143.60521 | D50: 35714.29 | E50: 18429.31521 | F50: 0 | K50: 0 | M50: 0 | W50: 2642857.1 | X50: нет | Y50: 31
A51: e | B51: 2026-04-02 | C51: 332967.881 | D51: 35714.29 | E51: 18183.59097 | F51: 0 | K51: 0 | M51: 279070 | W51: 2607142.81 | X51: страховка | Y51: 31
A52: e | B52: 2026-05-02 | C52: 53073.51588 | D52: 35714.29 | E52: 17359.22588 | F52: 0 | K52: 0 | M52: 0 | W52: 2571428.52 | X52: нет | Y52: 30
A53: e | B53: 2026-06-02 | C53: 53406.4325 | D53: 35714.29 | E53: 17692.1425 | F53: 0 | K53: 0 | M53: 0 | W53: 2535714.23 | X53: нет | Y53: 31
A54: e | B54: 2026-07-02 | C54: 52597.92058 | D54: 35714.29 | E54: 16883.63058 | F54: 0 | K54: 0 | M54: 0 | W54: 2499999.94 | X54: нет | Y54: 30
A55: e | B55: 2026-08-02 | C55: 52914.98403 | D55: 35714.29 | E55: 17200.69403 | F55: 0 | K55: 0 | M55: 0 | W55: 2464285.65 | X55: нет | Y55: 31
A56: e | B56: 2026-09-02 | C56: 52669.2598 | D56: 35714.29 | E56: 16954.9698 | F56: 0 | K56: 0 | M56: 0 | W56: 2428571.36 | X56: нет | Y56: 31
A57: e | B57: 2026-10-02 | C57: 51884.52764 | D57: 35714.29 | E57: 16170.23764 | F57: 0 | K57: 0 | M57: 0 | W57: 2392857.07 | X57: нет | Y57: 30
A58: e | B58: 2026-11-02 | C58: 52177.81132 | D58: 35714.29 | E58: 16463.52132 | F58: 0 | K58: 0 | M58: 0 | W58: 2357142.78 | X58: нет | Y58: 31
A59: e | B59: 2026-12-02 | C59: 51408.93234 | D59: 35714.29 | E59: 15694.64234 | F59: 0 | K59: 0 | M59: 0 | W59: 2321428.49 | X59: нет | Y59: 30
A60: e | B60: 2027-01-02 | C60: 51686.36285 | D60: 35714.29 | E60: 15972.07285 | F60: 0 | K60: 0 | M60: 0 | W60: 2285714.2 | X60: нет | Y60: 31
A61: e | B61: 2027-02-02 | C61: 51440.63862 | D61: 35714.29 | E61: 15726.34862 | F61: 0 | K61: 0 | M61: 0 | W61: 2249999.91 | X61: нет | Y61: 31
A62: e | B62: 2027-03-02 | C62: 49696.78944 | D62: 35714.29 | E62: 13982.49944 | F62: 0 | K62: 0 | M62: 0 | W62: 2214285.62 | X62: нет | Y62: 28
A63: e | B63: 2027-04-02 | C63: 330019.1901 | D63: 35714.29 | E63: 15234.90014 | F63: 0 | K63: 0 | M63: 279070 | W63: 2178571.33 | X63: страховка | Y63: 31
A64: e | B64: 2027-05-02 | C64: 50219.94411 | D64: 35714.29 | E64: 14505.65411 | F64: 0 | K64: 0 | M64: 0 | W64: 2142857.04 | X64: нет | Y64: 30
A65: e | B65: 2027-06-02 | C65: 50457.74167 | D65: 35714.29 | E65: 14743.45167 | F65: 0 | K65: 0 | M65: 0 | W65: 2107142.75 | X65: нет | Y65: 31
A66: e | B66: 2027-07-02 | C66: 49744.34881 | D66: 35714.29 | E66: 14030.05881 | F66: 0 | K66: 0 | M66: 0 | W66: 2071428.46 | X66: нет | Y66: 30
A67: e | B67: 2027-08-02 | C67: 49966.2932 | D67: 35714.29 | E67: 14252.0032 | F67: 0 | K67: 0 | M67: 0 | W67: 2035714.17 | X67: нет | Y67: 31
A68: e | B68: 2027-09-02 | C68: 49720.56897 | D68: 35714.29 | E68: 14006.27897 | F68: 0 | K68: 0 | M68: 0 | W68: 1999999.88 | X68: нет | Y68: 31
A69: e | B69: 2027-10-02 | C69: 49030.95587 | D69: 35714.29 | E69: 13316.66587 | F69: 0 | K69: 0 | M69: 0 | W69: 1964285.59 | X69: нет | Y69: 30
A70: e | B70: 2027-11-02 | C70: 49229.12049 | D70: 35714.29 | E70: 13514.83049 | F70: 0 | K70: 0 | M70: 0 | W70: 1928571.3 | X70: нет | Y70: 31
A71: e | B71: 2027-12-02 | C71: 48555.36057 | D71: 35714.29 | E71: 12841.07057 | F71: 0 | K71: 0 | M71: 0 | W71: 1892857.01 | X71: нет | Y71: 30
A72: e | B72: 2028-01-02 | C72: 48737.67202 | D72: 35714.29 | E72: 13023.38202 | F72: 0 | K72: 0 | M72: 0 | W72: 1857142.72 | X72: нет | Y72: 31
A73: e | B73: 2028-02-02 | C73: 48491.94779 | D73: 35714.29 | E73: 12777.65779 | F73: 0 | K73: 0 | M73: 0 | W73: 1821428.43 | X73: нет | Y73: 31
A74: e | B74: 2028-03-02 | C74: 47437.71171 | D74: 35714.29 | E74: 11723.42171 | F74: 0 | K74: 0 | M74: 0 | W74: 1785714.14 | X74: нет | Y74: 29
A75: e | B75: 2028-04-02 | C75: 327070.4993 | D75: 35714.29 | E75: 12286.20931 | F75: 0 | K75: 0 | M75: 279070 | W75: 1749999.85 | X75: страховка | Y75: 31
A76: e | B76: 2028-05-02 | C76: 47366.37233 | D76: 35714.29 | E76: 11652.08233 | F76: 0 | K76: 0 | M76: 0 | W76: 1714285.56 | X76: нет | Y76: 30
A77: e | B77: 2028-06-02 | C77: 47509.05084 | D77: 35714.29 | E77: 11794.76084 | F77: 0 | K77: 0 | M77: 0 | W77: 1678571.27 | X77: нет | Y77: 31
A78: e | B78: 2028-07-02 | C78: 46890.77704 | D78: 35714.29 | E78: 11176.48704 | F78: 0 | K78: 0 | M78: 0 | W78: 1642856.98 | X78: нет | Y78: 30
A79: e | B79: 2028-08-02 | C79: 47017.60237 | D79: 35714.29 | E79: 11303.31237 | F79: 0 | K79: 0 | M79: 0 | W79: 1607142.69 | X79: нет | Y79: 31
A80: e | B80: 2028-09-02 | C80: 46771.87814 | D80: 35714.29 | E80: 11057.58814 | F80: 0 | K80: 0 | M80: 0 | W80: 1571428.4 | X80: нет | Y80: 31
A81: e | B81: 2028-10-02 | C81: 46177.3841 | D81: 35714.29 | E81: 10463.0941 | F81: 0 | K81: 0 | M81: 0 | W81: 1535714.11 | X81: нет | Y81: 30
A82: e | B82: 2028-11-02 | C82: 46280.42966 | D82: 35714.29 | E82: 10566.13966 | F82: 0 | K82: 0 | M82: 0 | W82: 1499999.82 | X82: нет | Y82: 31
A83: e | B83: 2028-12-02 | C83: 45701.7888 | D83: 35714.29 | E83: 9987.498801 | F83: 0 | K83: 0 | M83: 0 | W83: 1464285.53 | X83: нет | Y83: 30
A84: e | B84: 2029-01-02 | C84: 45788.98119 | D84: 35714.29 | E84: 10074.69119 | F84: 0 | K84: 0 | M84: 0 | W84: 1428571.24 | X84: нет | Y84: 31
A85: e | B85: 2029-02-02 | C85: 45543.25696 | D85: 35714.29 | E85: 9828.966957 | F85: 0 | K85: 0 | M85: 0 | W85: 1392856.95 | X85: нет | Y85: 31
A86: e | B86: 2029-03-02 | C86: 44370.12213 | D86: 35714.29 | E86: 8655.832135 | F86: 0 | K86: 0 | M86: 0 | W86: 1357142.66 | X86: нет | Y86: 28
A87: e | B87: 2029-04-02 | C87: 324121.8085 | D87: 35714.29 | E87: 9337.518485 | F87: 0 | K87: 0 | M87: 279070 | W87: 1321428.37 | X87: страховка | Y87: 31
A88: e | B88: 2029-05-02 | C88: 44512.80056 | D88: 35714.29 | E88: 8798.510564 | F88: 0 | K88: 0 | M88: 0 | W88: 1285714.08 | X88: нет | Y88: 30
A89: e | B89: 2029-06-02 | C89: 44560.36001 | D89: 35714.29 | E89: 8846.070013 | F89: 0 | K89: 0 | M89: 0 | W89: 1249999.79 | X89: нет | Y89: 31
A90: e | B90: 2029-07-02 | C90: 44037.20527 | D90: 35714.29 | E90: 8322.915268 | F90: 0 | K90: 0 | M90: 0 | W90: 1214285.5 | X90: нет | Y90: 30
A91: e | B91: 2029-08-02 | C91: 44068.91154 | D91: 35714.29 | E91: 8354.621542 | F91: 0 | K91: 0 | M91: 0 | W91: 1178571.21 | X91: нет | Y91: 31
A92: e | B92: 2029-09-02 | C92: 43823.18731 | D92: 35714.29 | E92: 8108.897306 | F92: 0 | K92: 0 | M92: 0 | W92: 1142856.92 | X92: нет | Y92: 31
A93: e | B93: 2029-10-02 | C93: 43323.81233 | D93: 35714.29 | E93: 7609.522326 | F93: 0 | K93: 0 | M93: 0 | W93: 1107142.63 | X93: нет | Y93: 30
A94: e | B94: 2029-11-02 | C94: 43331.73883 | D94: 35714.29 | E94: 7617.448834 | F94: 0 | K94: 0 | M94: 0 | W94: 1071428.34 | X94: нет | Y94: 31
A95: e | B95: 2029-12-02 | C95: 42848.21703 | D95: 35714.29 | E95: 7133.92703 | F95: 0 | K95: 0 | M95: 0 | W95: 1035714.05 | X95: нет | Y95: 30
A96: e | B96: 2030-01-02 | C96: 42840.29036 | D96: 35714.29 | E96: 7126.000362 | F96: 0 | K96: 0 | M96: 0 | W96: 999999.76 | X96: нет | Y96: 31
A97: e | B97: 2030-02-02 | C97: 42594.56613 | D97: 35714.29 | E97: 6880.276127 | F97: 0 | K97: 0 | M97: 0 | W97: 964285.47 | X97: нет | Y97: 31
A98: e | B98: 2030-03-02 | C98: 41706.78848 | D98: 35714.29 | E98: 5992.498482 | F98: 0 | K98: 0 | M98: 0 | W98: 928571.18 | X98: нет | Y98: 28
A99: e | B99: 2030-04-02 | C99: 321173.1177 | D99: 35714.29 | E99: 6388.827655 | F99: 0 | K99: 0 | M99: 279070 | W99: 892856.89 | X99: страховка | Y99: 31
A100: e | B100: 2030-05-02 | C100: 41659.22879 | D100: 35714.29 | E100: 5944.938793 | F100: 0 | K100: 0 | M100: 0 | W100: 857142.6 | X100: нет | Y100: 30
A101: e | B101: 2030-06-02 | C101: 41611.66918 | D101: 35714.29 | E101: 5897.379183 | F101: 0 | K101: 0 | M101: 0 | W101: 821428.31 | X101: нет | Y101: 31
A102: e | B102: 2030-07-02 | C102: 41183.6335 | D102: 35714.29 | E102: 5469.343497 | F102: 0 | K102: 0 | M102: 0 | W102: 785714.02 | X102: нет | Y102: 30
A103: e | B103: 2030-08-02 | C103: 41120.22071 | D103: 35714.29 | E103: 5405.930711 | F103: 0 | K103: 0 | M103: 0 | W103: 749999.73 | X103: нет | Y103: 31
A104: e | B104: 2030-09-02 | C104: 40874.49648 | D104: 35714.29 | E104: 5160.206476 | F104: =$G$18 -> 0 | K104: 0 | M104: 0 | W104: 714285.44 | X104: нет | Y104: 31
A105: e | B105: 2030-10-02 | C105: 40470.24055 | D105: 35714.29 | E105: 4755.950555 | F105: 0 | K105: =IF(X105="страховка",$G$20,0) -> 0 | M105: =IF(X105="страховка",$G$21,0) -> 0 | W105: 678571.15 | X105: =IF(MONTH($B$40)-MONTH(B105)=0,"страховка","нет") -> нет | Y105: 30
A106: e | B106: =DATE(YEAR(B105),MONTH(B105)+1,DAY(B105)) -> 2030-11-02 | C106: =SUM(D106:V106) -> 40383.048 | D106: =$A$14 -> 35714.29 | E106: =W105*$D$14/360*Y106 -> 4668.758004 | F106: 0 | K106: 0 | M106: 0 | W106: =W105-D106 -> 642856.86 | X106: нет | Y106: =B106-B105 -> 31
A107: e | B107: 2030-12-02 | C107: 39994.64526 | D107: 35714.29 | E107: 4280.355259 | F107: 0 | K107: 0 | M107: 0 | W107: 607142.57 | X107: нет | Y107: 30
A108: e | B108: 2031-01-02 | C108: 39891.59953 | D108: 35714.29 | E108: 4177.309532 | F108: 0 | K108: 0 | M108: 0 | W108: 571428.28 | X108: нет | Y108: 31
A109: e | B109: 2031-02-02 | C109: 39645.8753 | D109: 35714.29 | E109: 3931.585296 | F109: 0 | K109: 0 | M109: 0 | W109: 535713.99 | X109: нет | Y109: 31
A110: e | B110: 2031-03-02 | C110: 39043.45483 | D110: 35714.29 | E110: 3329.164829 | F110: 0 | K110: 0 | M110: 0 | W110: 499999.7 | X110: нет | Y110: 28
A111: e | B111: 2031-04-02 | C111: 318224.4268 | D111: 35714.29 | E111: 3440.136825 | F111: 0 | K111: 0 | M111: 279070 | W111: 464285.41 | X111: страховка | Y111: 31
A112: e | B112: 2031-05-02 | C112: 38805.65702 | D112: 35714.29 | E112: 3091.367022 | F112: 0 | K112: 0 | M112: 0 | W112: 428571.12 | X112: нет | Y112: 30
A113: e | B113: 2031-06-02 | C113: 38662.97835 | D113: 35714.29 | E113: 2948.688353 | F113: 0 | K113: 0 | M113: 0 | W113: 392856.83 | X113: нет | Y113: 31
A114: e | B114: 2031-07-02 | C114: 38330.06173 | D114: 35714.29 | E114: 2615.771726 | F114: 0 | K114: 0 | M114: 0 | W114: 357142.54 | X114: нет | Y114: 30
A115: e | B115: 2031-08-02 | C115: 38171.52988 | D115: 35714.29 | E115: 2457.239881 | F115: 0 | K115: 0 | M115: 0 | W115: 321428.25 | X115: нет | Y115: 31
A116: e | B116: 2031-09-02 | C116: 37925.80565 | D116: 35714.29 | E116: 2211.515646 | F116: 0 | K116: 0 | M116: 0 | W116: 285713.96 | X116: нет | Y116: 31
A117: e | B117: 2031-10-02 | C117: 37616.66878 | D117: 35714.29 | E117: 1902.378784 | F117: 0 | K117: 0 | M117: 0 | W117: 249999.67 | X117: нет | Y117: 30
A118: e | B118: 2031-11-02 | C118: 37434.35717 | D118: 35714.29 | E118: 1720.067174 | F118: 0 | K118: 0 | M118: 0 | W118: 214285.38 | X118: нет | Y118: 31
A119: e | B119: 2031-12-02 | C119: 37141.07349 | D119: 35714.29 | E119: 1426.783488 | F119: 0 | K119: 0 | M119: 0 | W119: 178571.09 | X119: нет | Y119: 30
A120: e | B120: 2032-01-02 | C120: 36942.9087 | D120: 35714.29 | E120: 1228.618702 | F120: 0 | K120: 0 | M120: 0 | W120: 142856.8 | X120: нет | Y120: 31
A121: e | B121: 2032-02-02 | C121: 36697.18447 | D121: 35714.29 | E121: 982.8944664 | F121: 0 | K121: 0 | M121: 0 | W121: 107142.51 | X121: нет | Y121: 31
A122: e | B122: 2032-03-02 | C122: 36403.90086 | D122: 35714.29 | E122: 689.6108609 | F122: 0 | K122: 0 | M122: 0 | W122: 71428.22 | X122: нет | Y122: 29
A123: e | B123: 2032-04-02 | C123: 315275.736 | D123: 35714.29 | E123: 491.4459948 | F123: 0 | K123: 0 | M123: 279070 | W123: 35713.93 | X123: страховка | Y123: 31
A124: e | B124: 2032-05-02 | C124: 35952.08525 | D124: 35714.29 | E124: 237.7952506 | F124: 0 | W124: -0.3600000025 | Y124: 30
B125: Всього | C125: 5816370.626 | D125: 3000000.36 | E125: 862880.2661 | F125: 0 | G125: 0 | H125: 0 | I125: 75000 | J125: 2000 | K125: 0 | L125: 0 | M125: 2232560 | N125: 0 | O125: 0 | P125: 1500 | Q125: 0 | R125: 179166.6667 | S125: 0 | T125: 0 | U125: =XIRR(C40:C124,B40:B124) -> 0.3403446853 | V125: 3353107.293
B127: Загальні витрати за кредитом( проценти за користування кредитом, комісії та інші обовязкові платежі за супровідні послуги кредитодавця, кредитного посередника (за наявності) та третіх осіб, повязані з отриманням, обслуговуванням та поверненням кредиту), грн з них: | J127: =V125 -> 3353107.293
B128: - Платежі за супутні послуги кредитодавця, повязані з отриманням, обслуговуванням та поверненням кредиту), грн | J128: =E125+F125+G125+I125+J125 -> 939880.2661
B129: - Платежі за супутні послуги третіх осіб, повязані з отриманням, обслуговуванням та поверненням кредиту), грн | J129: =K125+L125+M125+N125+O125+P125+R125+T125 -> 2413226.667
B130: Орієнтовна загальна вартість кредиту для споживача за весь строк користування кредитом ( у т.ч. тіло кредиту, відсотки, комісії та інші платежі), грн | J130: =J127+D9 -> 6353107.293
B131: Орієнтовна реальна річна процентна ставка, % річних | J131: =U125 -> 0.3403446853
B132: Застереження: Розрахунок загальної вартості Кредиту і реальної процентної ставки носить інформативний характер для Позичальника і визначено станом на дату укладання Кредитного договору. При здійсненні розрахунку загальної вартості Кредиту і реальної процентної ставки Кредитор враховував вартість супутніх послуг третіх осіб, послуги кредитного посередник ( за наявності). В розрахунок загальної вартості Кредиту і реальної процентної ставки не включались умовні платежі Позичальника по Договору (пені, штрафи, які встановлюються згідно з Договором).
B133: Наведені обчислення реальної річної процентної ставки та орієнтовної загальної вартості кредиту для споживача є репрезентативними та базуються на обраних споживачем умовах кредитування, викладених вище, і на припущенні, що договір про споживчий кредит залишатиметься дійсним протягом погодженого строку, а кредитодавець і споживач виконають свої обов’язки на умовах та у строки, визначені в договорі.Реальна річна процентна ставка обчислена на основі припущення, що процентна ставка та інші платежі за послуги кредитодавця залишатимуться незмінними та застосовуватимуться протягом строку дії договору про споживчий кредит. Застереження: використання інших способів надання кредиту та/або зміна інших вищезазначених умов кредитування можуть мати наслідком застосування іншої реальної річної процентної ставки та орієнтовної загальної вартості кредиту для споживача. Орієнтовна реальна річна процентна ставка обчислена з використанням фінансової функції ЧИСТВНДОХ програмного продукту Microsoft Excel.
B134: Позичальник не сплачує Кредитору комісійних винагород за розрахунково-касове обслуговування, що пов‘язані з погашенням Кредиту та процентів за ним Позичальником у готівковій чи безготівковій формі через установи Кредитора. У випадку погашення Позичальником Кредиту та процентів за ним не через установи Кредитора Позичальник буде сплачувати послуги інших банків згідно з тарифами, які діятимуть в таких банках на момент здійснення розрахунково-касового обслуговування Позичальника.

Sheet ануітет
F1: до 165 ПМ | G1: 499620 | H1: 0.03
F2: від 165 до 290 ПМ | G2: 878120 | H2: 0.04
F3: більше 290 ПМ | H3: 0.05
D4: КАЛЬКУЛЯТОР | H4: 3028
D5: Обрані Споживачем умови кредитування
B7: Кредит видається на:
B8: Дата надання кредиту | D8: =TODAY() -> 2025-04-30
B9: Сума кредиту,грн.: | D9: 2000000 | E9: гривень
B10: Забезпечення | D10: 3000000 | E10: гривень | F10: =D10/1.2 -> 2500000 | J10: Заповніть дані, зазначені червоним кольором
B11: Строк користування кредитом (в місяцях): | D11: 72
B12: Погашення основної суми кредиту: щомісяця
B13: Погашення процентів: щомісяця
A14: =ROUND(D9/D11,2) -> 27777.78 | B14: Номінальна процентна ставка: | D14: =VLOOKUP(D15,'Номінальна %ставка'!$A$2:$H$8,MATCH(D11,'Номінальна %ставка'!$A$2:$H$2,0),0) -> 0.1449 | E14: річних | F14: =D14 -> 0.1449 | I14: =F14/12 -> 0.012075
B15: Авансовий внесок | D15: 0.4 | F15: =D10*D15 -> 1200000 | G15: гривень
B16: Супутні витрати позичальника:
A17: =DATE(YEAR(B40),MONTH(B40)+1,DAY(B40)) -> 2025-05-30 | B17: комісія за надання кредиту (разова): | D17: 0.025 | E17: від основної суми кредиту. Всього: | G17: =D17*D9 -> 50000 | I17: гривень
B18: обслуговування кредитної заборгованості: | D18: 0 | E18: на місяць від основної суми кредиту: | G18: =D18*D9 -> 0 | I18: гривень
B19: розрахунково-касове обслуговування: | G19: 0 | I19: гривень
B20: страхування НВ: | D20: 0 | E20: на рік від основної суми кредиту: | G20: =D20*D9 -> 0 | I20: гривень
B21: страхування КАСКО: | D21: 0.0649 | E21: на рік від залогової вартості: | G21: =D10*D21 -> 194700 | I21: гривень
B22: послуги нотаріуса: | G22: 0 | I22: гривень
B23: інші послуги третіх осіб | E23: фіксована сума (одноразово) | G23: 0 | I23: гривень
B24: Державна реєстрація транспортного засобу | G24: 1500 | I24: гривень
B25: Отримання витягів/внесення запису(ів) до Державного реєстру обтяжень рухомого майна | G25: 2000 | I25: гривень
B26: Збір на обов'язкове державне пенсійне страхування | D26: =IF(D10<G1,H1,IF(AND(D10>=G1,D10<=G2),H2,IF(D10>G2,H3))) -> 0.05 | E26: від суми кредиту (одноразово) | G26: =(D10/1.2)*D26 -> 125000 | I26: гривень
B27: оцінка майна: | E27: фіксована сума (одноразово) | G27: 0 | I27: гривень
B28: інша плата за послуги кредитного посередника | G28: 0 | I28: гривень
B29: ВСЬОГО | G29: =SUM(G17:G28) -> 373200 | I29: гривень
F31: =PMT(F14/12,E11,-D9) ->  | G31: =IPMT(F14/12,1,24,-D9) -> 24150
D32: Розрахунок загальної вартості споживчого кредиту та реальної процентної ставки
B34: Дата видачі кредиту/дата платежу | C34: Чиста сума кредиту/сума платежу за розрахунковий період, грн. | D34: Види платежів за кредитом | U34: Реальна процентна ставка, % | V34: Абсолютне значення подорожчання кредиту, грн.
D35: сума кредиту за договором | E35: проценти за користування кредитом | F35: платежі за супутні послуги
F36: банку | K36: третіх осіб | T36: кредитного посередника(за наявності)
F37: обслуговування кредитної заборгованості | G37: РКО | I37: комісія за надання кредиту | J37: інші послуги банку (отримання витягів/внесення запису до ДРОРМ) | K37: страхування НВ | L37: послуги нотаріусів | M37: страхування КАСКО | N37: оцінка майна | O37: надання витягів/внесення запису(ів) до Державного реєстру обтяжень рухомого майна | P37: інші послуги третіх осіб | R37: Збір на обов'язкове державне пенсійне страхування | T37: інша плата за послуги кредитного посередника
B38: 1 | C38: 2 | D38: 3 | E38: 4 | F38: 5 | G38: 6 | I38: 7 | J38: 8 | K38: 9 | L38: 10 | M38: 11 | N38: 12 | O38: 13 | P38: 14 | R38: 15 | T38: 16 | U38: 17 | V38: 18
W39: остаток | Z39: ан платеж
A40: e | B40: =D8 -> 2025-04-30 | C40: =-(D40-SUM(F40:T40)) -> -1626800 | D40: =D9 -> 2000000 | E40: х | F40: =$G$18 -> 0 | G40: =G19 -> 0 | I40: =G17 -> 50000 | J40: =G25 -> 2000 | K40: =IF(X40="страховка",$G$20,0) -> 0 | L40: =G22 -> 0 | M40: =IF(X40="страховка",$G$21,0) -> 194700 | N40: =G27 -> 0 | O40: =G23 -> 0 | P40: =G24 -> 1500 | R40: =G26 -> 125000 | T40: =G28 -> 0 | U40: х | V40: х | W40: 2000000 | X40: =IF(MONTH($B$40)-MONTH(B40)=0,"страховка","нет") -> страховка | AB40: =(D9*D14/12)/(1-(1/(1+D14/12)^D11)) -> 41738.06871
A41: e | B41: =DATE(YEAR(B40),MONTH(B40)+1,DAY(B40)) -> 2025-05-30 | C41: =SUM(D41:V41) -> 41738.06871 | D41: =Z41-E41 -> 17588.06871 | E41: =W40*$D$14/12 -> 24150 | F41: =$G$18 -> 0 | K41: =IF(X41="страховка",$G$20,0) -> 0 | M41: =IF(X41="страховка",$G$21,0) -> 0 | W41: =W40-D41 -> 1982411.931 | X41: =IF(MONTH($B$40)-MONTH(B41)=0,"страховка","нет") -> нет | Y41: =B41-B40 -> 30 | Z41: =PMT($D$14/12,$D$11,-$D$9) -> 41738.06871
A42: e | B42: =DATE(YEAR(B41),MONTH(B41)+1,DAY(B41)) -> 2025-06-30 | C42: =SUM(D42:V42) -> 41738.06871 | D42: =Z42-E42 -> 17800.44464 | E42: =W41*$D$14/12 -> 23937.62407 | F42: 0 | K42: 0 | M42: 0 | W42: =W41-D42 -> 1964611.487 | X42: нет | Y42: =B42-B41 -> 31 | Z42: =PMT($D$14/12,$D$11,-$D$9) -> 41738.06871
A43: e | B43: 2025-07-30 | C43: 41738.06871 | D43: 18015.38501 | E43: 23722.6837 | F43: 0 | K43: 0 | M43: 0 | W43: 1946596.102 | X43: нет | Y43: 30 | Z43: 41738.06871
A44: e | B44: 2025-08-30 | C44: 41738.06871 | D44: 18232.92079 | E44: 23505.14793 | F44: 0 | K44: 0 | M44: 0 | W44: 1928363.181 | X44: нет | Y44: 31 | Z44: 41738.06871
A45: e | B45: 2025-09-30 | C45: 41738.06871 | D45: 18453.08331 | E45: 23284.98541 | F45: 0 | K45: 0 | M45: 0 | W45: 1909910.098 | X45: нет | Y45: 31 | Z45: 41738.06871
A46: e | B46: 2025-10-30 | C46: 41738.06871 | D46: 18675.90429 | E46: 23062.16443 | F46: 0 | K46: 0 | M46: 0 | W46: 1891234.193 | X46: нет | Y46: 30 | Z46: 41738.06871
A47: e | B47: 2025-11-30 | C47: 41738.06871 | D47: 18901.41583 | E47: 22836.65288 | F47: 0 | K47: 0 | M47: 0 | W47: 1872332.777 | X47: нет | Y47: 31 | Z47: 41738.06871
A48: e | B48: 2025-12-30 | C48: 41738.06871 | D48: 19129.65043 | E48: 22608.41829 | F48: 0 | K48: 0 | M48: 0 | W48: 1853203.127 | X48: нет | Y48: 30 | Z48: 41738.06871
A49: e | B49: 2026-01-30 | C49: 41738.06871 | D49: 19360.64096 | E49: 22377.42776 | F49: 0 | K49: 0 | M49: 0 | W49: 1833842.486 | X49: нет | Y49: 31 | Z49: 41738.06871
A50: e | B50: 2026-03-02 | C50: 41738.06871 | D50: 19594.4207 | E50: 22143.64802 | F50: 0 | K50: 0 | M50: 0 | W50: 1814248.065 | X50: нет | Y50: 31 | Z50: 41738.06871
A51: e | B51: 2026-04-02 | C51: 236438.0687 | D51: 19831.02333 | E51: 21907.04539 | F51: 0 | K51: 0 | M51: 194700 | W51: 1794417.042 | X51: страховка | Y51: 31 | Z51: 41738.06871
A52: e | B52: 2026-05-02 | C52: 41738.06871 | D52: 20070.48293 | E52: 21667.58578 | F52: 0 | K52: 0 | M52: 0 | W52: 1774346.559 | X52: нет | Y52: 30 | Z52: 41738.06871
A53: e | B53: 2026-06-02 | C53: 41738.06871 | D53: 20312.83401 | E53: 21425.2347 | F53: 0 | K53: 0 | M53: 0 | W53: 1754033.725 | X53: нет | Y53: 31 | Z53: 41738.06871
A54: e | B54: 2026-07-02 | C54: 41738.06871 | D54: 20558.11148 | E54: 21179.95723 | F54: 0 | K54: 0 | M54: 0 | W54: 1733475.614 | X54: нет | Y54: 30 | Z54: 41738.06871
A55: e | B55: 2026-08-02 | C55: 41738.06871 | D55: 20806.35068 | E55: 20931.71803 | F55: 0 | K55: 0 | M55: 0 | W55: 1712669.263 | X55: нет | Y55: 31 | Z55: 41738.06871
A56: e | B56: 2026-09-02 | C56: 41738.06871 | D56: 21057.58736 | E56: 20680.48135 | F56: 0 | K56: 0 | M56: 0 | W56: 1691611.676 | X56: нет | Y56: 31 | Z56: 41738.06871
A57: e | B57: 2026-10-02 | C57: 41738.06871 | D57: 21311.85773 | E57: 20426.21098 | F57: 0 | K57: 0 | M57: 0 | W57: 1670299.818 | X57: нет | Y57: 30 | Z57: 41738.06871
A58: e | B58: 2026-11-02 | C58: 41738.06871 | D58: 21569.19841 | E58: 20168.8703 | F58: 0 | K58: 0 | M58: 0 | W58: 1648730.619 | X58: нет | Y58: 31 | Z58: 41738.06871
A59: e | B59: 2026-12-02 | C59: 41738.06871 | D59: 21829.64648 | E59: 19908.42223 | F59: 0 | K59: 0 | M59: 0 | W59: 1626900.973 | X59: нет | Y59: 30 | Z59: 41738.06871
A60: e | B60: 2027-01-02 | C60: 41738.06871 | D60: 22093.23947 | E60: 19644.82925 | F60: 0 | K60: 0 | M60: 0 | W60: 1604807.733 | X60: нет | Y60: 31 | Z60: 41738.06871
A61: e | B61: 2027-02-02 | C61: 41738.06871 | D61: 22360.01533 | E61: 19378.05338 | F61: 0 | K61: 0 | M61: 0 | W61: 1582447.718 | X61: нет | Y61: 31 | Z61: 41738.06871
A62: e | B62: 2027-03-02 | C62: 41738.06871 | D62: 22630.01252 | E62: 19108.0562 | F62: 0 | K62: 0 | M62: 0 | W62: 1559817.706 | X62: нет | Y62: 28 | Z62: 41738.06871
A63: e | B63: 2027-04-02 | C63: 236438.0687 | D63: 22903.26992 | E63: 18834.7988 | F63: 0 | K63: 0 | M63: 194700 | W63: 1536914.436 | X63: страховка | Y63: 31 | Z63: 41738.06871
A64: e | B64: 2027-05-02 | C64: 41738.06871 | D64: 23179.8269 | E64: 18558.24181 | F64: 0 | K64: 0 | M64: 0 | W64: 1513734.609 | X64: нет | Y64: 30 | Z64: 41738.06871
A65: e | B65: 2027-06-02 | C65: 41738.06871 | D65: 23459.72331 | E65: 18278.3454 | F65: 0 | K65: 0 | M65: 0 | W65: 1490274.885 | X65: нет | Y65: 31 | Z65: 41738.06871
A66: e | B66: 2027-07-02 | C66: 41738.06871 | D66: 23742.99947 | E66: 17995.06924 | F66: 0 | K66: 0 | M66: 0 | W66: 1466531.886 | X66: нет | Y66: 30 | Z66: 41738.06871
A67: e | B67: 2027-08-02 | C67: 41738.06871 | D67: 24029.69619 | E67: 17708.37252 | F67: 0 | K67: 0 | M67: 0 | W67: 1442502.19 | X67: нет | Y67: 31 | Z67: 41738.06871
A68: e | B68: 2027-09-02 | C68: 41738.06871 | D68: 24319.85477 | E68: 17418.21394 | F68: 0 | K68: 0 | M68: 0 | W68: 1418182.335 | X68: нет | Y68: 31 | Z68: 41738.06871
A69: e | B69: 2027-10-02 | C69: 41738.06871 | D69: 24613.51702 | E69: 17124.5517 | F69: 0 | K69: 0 | M69: 0 | W69: 1393568.818 | X69: нет | Y69: 30 | Z69: 41738.06871
A70: e | B70: 2027-11-02 | C70: 41738.06871 | D70: 24910.72524 | E70: 16827.34348 | F70: 0 | K70: 0 | M70: 0 | W70: 1368658.093 | X70: нет | Y70: 31 | Z70: 41738.06871
A71: e | B71: 2027-12-02 | C71: 41738.06871 | D71: 25211.52224 | E71: 16526.54647 | F71: 0 | K71: 0 | M71: 0 | W71: 1343446.571 | X71: нет | Y71: 30 | Z71: 41738.06871
A72: e | B72: 2028-01-02 | C72: 41738.06871 | D72: 25515.95138 | E72: 16222.11734 | F72: 0 | K72: 0 | M72: 0 | W72: 1317930.619 | X72: нет | Y72: 31 | Z72: 41738.06871
A73: e | B73: 2028-02-02 | C73: 41738.06871 | D73: 25824.05649 | E73: 15914.01223 | F73: 0 | K73: 0 | M73: 0 | W73: 1292106.563 | X73: нет | Y73: 31 | Z73: 41738.06871
A74: e | B74: 2028-03-02 | C74: 41738.06871 | D74: 26135.88197 | E74: 15602.18674 | F74: 0 | K74: 0 | M74: 0 | W74: 1265970.681 | X74: нет | Y74: 29 | Z74: 41738.06871
A75: e | B75: 2028-04-02 | C75: 236438.0687 | D75: 26451.47274 | E75: 15286.59597 | F75: 0 | K75: 0 | M75: 194700 | W75: 1239519.208 | X75: страховка | Y75: 31 | Z75: 41738.06871
A76: e | B76: 2028-05-02 | C76: 41738.06871 | D76: 26770.87428 | E76: 14967.19444 | F76: 0 | W76: 1212748.334 | Y76: 30 | Z76: 41738.06871
B77: Всього: | C77: 3027092.454 | D77: 2000000 | E77: 442992.4539 | F77: 0 | G77: 0 | H77: 0 | I77: 50000 | J77: 2000 | K77: 0 | L77: 0 | M77: 778800 | N77: 0 | O77: 0 | P77: 1500 | Q77: 0 | R77: 125000 | S77: 0 | T77: 0 | U77: =XIRR(C40:C76,B40:B76) -> 0.169031924 | V77: 1400292.454
B79: Загальні витрати за кредитом ( проценти за користування кредитом, комісії та інші обовязкові платежі за супровідні послуги кредитодавця, кредитного посередника (за наявності) та третіх осіб, повязані з отриманням, обслуговуванням та поверненням кредиту), грн з них: | J79: =V77 -> 1400292.454
B80: - Платежі за супутні послуги кредитодавця, повязані з отриманням, обслуговуванням та поверненням кредиту), грн | J80: =E77+F77+G77+I77+J77 -> 494992.4539
B81: - Платежі за супутні послуги третіх осіб, повязані з отриманням, обслуговуванням та поверненням кредиту), грн | J81: =K77+L77+M77+N77+O77+P77+R77+T77 -> 905300
B82: Орієнтовна загальна вартість кредиту для споживача за весь строк користування кредитом ( у т.ч. тіло кредиту, відсотки, комісії та інші платежі), грн | J82: =J79+D9 -> 3400292.454
B83: Орієнтовна реальна річна процентна ставка, % річних | J83: =U77 -> 0.169031924
B84: Застереження: Розрахунок загальної вартості Кредиту і реальної процентної ставки носить інформативний характер для Позичальника і визначено станом на дату укладання Кредитного договору. При здійсненні розрахунку загальної вартості Кредиту і реальної процентної ставки Кредитор враховував вартість супутніх послуг третіх осіб, послуги кредитного посередник ( за наявності). В розрахунок загальної вартості Кредиту і реальної процентної ставки не включались умовні платежі Позичальника по Договору (пені, штрафи, які встановлюються згідно з Договором).
B85: Наведені обчислення реальної річної процентної ставки та орієнтовної загальної вартості кредиту для споживача є репрезентативними та базуються на обраних споживачем умовах кредитування, викладених вище, і на припущенні, що договір про споживчий кредит залишатиметься дійсним протягом погодженого строку, а кредитодавець і споживач виконають свої обов’язки на умовах та у строки, визначені в договорі.Реальна річна процентна ставка обчислена на основі припущення, що процентна ставка та інші платежі за послуги кредитодавця залишатимуться незмінними та застосовуватимуться протягом строку дії договору про споживчий кредит. Застереження: використання інших способів надання кредиту та/або зміна інших вищезазначених умов кредитування можуть мати наслідком застосування іншої реальної річної процентної ставки та орієнтовної загальної вартості кредиту для споживача. Орієнтовна реальна річна процентна ставка обчислена з використанням фінансової функції ЧИСТВНДОХ програмного продукту Microsoft Excel.
B86: Позичальник не сплачує Кредитору комісійних винагород за розрахунково-касове обслуговування, що пов‘язані з погашенням Кредиту та процентів за ним Позичальником у готівковій чи безготівковій формі через установи Кредитора. У випадку погашення Позичальником Кредиту та процентів за ним не через установи Кредитора Позичальник буде сплачувати послуги інших банків згідно з тарифами, які діятимуть в таких банках на момент здійснення розрахунково-касового обслуговування Позичальника.

Sheet Номінальна %ставка (hidden)
B1: Строк кредиту, міс.
A2: Авансовий внесок | B2: 12 | C2: 24 | D2: 36 | E2: 48 | F2: 60 | G2: 72 | H2: 84 | K2: Строк кредиту | L2: Авансовий внесок (від вартості суми авто)
A3: 0.2 | B3: 0.0999 | C3: 0.1249 | D3: 0.1349 | E3: 0.1499 | F3: 0.1499 | G3: 0.1599 | H3: 0.1599 | L3: від 20% | M3: від 30% | N3: від 40% | O3: від 50% | P3: від 60% | Q3: від 70%
A4: 0.3 | B4: 0.0899 | C4: 0.1149 | D4: 0.1299 | E4: 0.1399 | F4: 0.1449 | G4: 0.1499 | H4: 0.1549 | L4: Річна процентна ставка
A5: 0.4 | B5: 0.0749 | C5: 0.0999 | D5: 0.1199 | E5: 0.1299 | F5: 0.1399 | G5: 0.1449 | H5: 0.1499 | K5: 12 міс. | L5: 0.0999 | M5: 0.0899 | N5: 0.0749 | O5: 0.0599 | P5: 0.0299 | Q5: 0.0001
A6: 0.5 | B6: 0.0599 | C6: 0.0849 | D6: 0.0999 | E6: 0.1099 | F6: 0.1149 | G6: 0.1249 | H6: 0.1299 | K6: 24 міс. | L6: 0.1249 | M6: 0.1299 | N6: 0.0999 | O6: 0.0849 | P6: 0.0599 | Q6: 0.0199
A7: 0.6 | B7: 0.0299 | C7: 0.0599 | D7: 0.0799 | E7: 0.0899 | F7: 0.0999 | G7: 0.1099 | H7: 0.1149 | K7: 36 міс. | L7: 0.1349 | M7: 0.1499 | N7: 0.1199 | O7: 0.0999 | P7: 0.0799 | Q7: 0.0399
A8: 0.7 | B8: 0.0001 | C8: 0.0199 | D8: 0.0399 | E8: 0.0549 | F8: 0.0649 | G8: 0.0699 | H8: 0.0799 | K8: 48 міс. | L8: 0.1499 | M8: 0.1549 | N8: 0.1299 | O8: 0.1099 | P8: 0.0899 | Q8: 0.0549
K9: 60 міс. | L9: 0.1499 | M9: 0.1599 | N9: 0.1399 | O9: 0.1149 | P9: 0.0999 | Q9: 0.0649
K10: 72 міс. | L10: 0.1599 | M10: 0.1649 | N10: 0.1449 | O10: 0.1249 | P10: 0.1099 | Q10: 0.0699
B11: 0.2 | C11: 0.3 | D11: 0.4 | E11: 0.5 | F11: 0.6 | K11: 84 міс. | L11: 0.1599 | M11: 0.1649 | N11: 0.1499 | O11: 0.1299 | P11: 0.1149 | Q11: 0.0799
A12: 12 | B12: 0.1499 | C12: 0.1399 | D12: 0.1199 | E12: 0.0999 | F12: 0.0699
A13: 24 | B13: 0.1599 | C13: 0.1499 | D13: 0.1399 | E13: 0.1199 | F13: 0.0899
A14: 36 | B14: 0.1699 | C14: 0.1599 | D14: 0.1499 | E14: 0.1299 | F14: 0.0999
A15: 48 | B15: 0.1799 | C15: 0.1699 | D15: 0.1599 | E15: 0.1399 | F15: 0.1099
A16: 60 | B16: 0.1899 | C16: 0.1799 | D16: 0.1699 | E16: 0.1499 | F16: 0.1199
